[Event "2nd Asian Nations Team Cup U14 2019"]
[Site "Shenzhen"]
[Date "2019.12.21"]
[Round "3.12"]
[White "Wei, Yaqing"]
[Black "Zhao, Yunqing"]
[Result "1-0"]
[ECO "B90"]
[WhiteElo "1621"]
[BlackElo "1542"]
[Annotator "NA RC"]
[PlyCount "171"]
[EventDate "2019.12.19"]
[EventType "team-tourn"]
[EventCountry "CHN"]
[SourceTitle "playchess.com"]
[Source "ChessBase"]
[SourceQuality "1"]
[TimeControl "5400+30"]

1. e4 {[%emt 0:00:12]} c5 {[%emt 0:00:10]} 2. Nf3 {[%emt 0:00:00]} d6 {[%emt 0:00:07]} 3. d4 {[%emt 0:00:05]} Nf6 {[%emt 0:00:09]} 4. Nc3 {[%emt 0:00:11]} cxd4 {[%emt 0:00:00]} 5. Nxd4 {[%emt 0:00:21]} a6 {[%emt 0:00:00]} 6. a4 {[%emt 0:00:35]} e5 {[%emt 0:00:00]} 7. Nf3 {[%emt 0:01:05]} Be6 {[%emt 0:00:49]} 8. Ng5 {[%emt 0:01:55]} Nc6 {[%emt 0:02:20]} 9. Nxe6 {[%emt 0:01:56]} fxe6 {[%emt 0:00:00]} 10. Bc4 {[%emt 0:01:17]} Qc8 {[%emt 0:02:25]} 11. Bg5 {[%emt 0:06:43]} Nd4 {[%emt 0:04:03]} 12. Bd3 {[%emt 0:02:42]} Be7 {[%emt 0:00:00]} 13. O-O {[%emt 0:01:33]} O-O {[%emt 0:00:00]} 14. Ne2 {[%emt 0:02:18]} h6 {[%emt 0:10:23]} 15. Bh4 {[%emt 0:08:27]} Qc5 {[%emt 0:00:14]} 16. Nxd4 {[%emt 0:02:18]} Qxd4 {[%emt 0:00:44]} 17. c3 {[%emt 0:09:22]} Qb6 {[%emt 0:08:54]} 18. Qe2 {[%emt 0:10:57]} Qc7 {[%emt 0:11:46]} 19. Bc4 {[%emt 0:00:00]} Qd7 {[%emt 0:00:29]} 20. Rfd1 {[%emt 0:02:58]} Ne8 {[%emt 0:01:01]} 21. Qg4 {[%emt 0:00:00]} Nc7 {[%emt 0:01:37]} 22. Bg3 {[%emt 0:06:38]} Qe8 {[%emt 0:04:54]} 23. Bxe6+ {[%emt 0:00:00]} Nxe6 {[%emt 0:03:24]} 24. Qxe6+ {[%emt 0:00:00]} Qf7 {[%emt 0:04:59]} 25. Qxf7+ {[%emt 0:00:00]} Rxf7 {[%emt 0:04:07]} 26. f3 {[%emt 0:02:16]} g5 {[%emt 0:03:09]} 27. c4 {[%emt 0:00:49]} Rc8 {[%emt 0:00:00]} 28. Rac1 {[%emt 0:04:05]} Bf8 {[%emt 0:00:00]} 29. b3 {[%emt 0:04:59]} Rfc7 {[%emt 0:00:41]} 30. Rd5 {[%emt 0:01:21]} Kf7 {[%emt 0:01:29]} 31. Kf2 {[%emt 0:01:22]} Ke6 {[%emt 0:00:20]} 32. Ke3 {[%emt 0:06:59]} Rc6 {[%emt 0:02:24]} 33. Kd3 {[%emt 0:01:45]} Rb6 {[%emt 0:00:00]} 34. Kc3 {[%emt 0:00:00]} Rbc6 {[%emt 0:02:37]} 35. Bf2 {[%emt 0:03:19]} Rb8 {[%emt 0:01:44]} 36. Kb2 {[%emt 0:01:53]} Rbc8 {[%emt 0:00:00]} 37. Be3 {[%emt 0:00:00]} Be7 {[%emt 0:03:05]} 38. g3 {[%emt 0:01:49]} Rf8 {[%emt 0:00:00]} 39. Rf1 {[%emt 0:04:01]} h5 {[%emt 0:04:24]} 40. f4 {[%emt 0:03:37]} gxf4 {[%emt 0:02:38]} 41. gxf4 {[%emt 0:00:00]} exf4 {[%emt 0:00:51]} 42. Rxf4 {[%emt 0:00:00]} Rxf4 {[%emt 0:00:00]} 43. Bxf4 {[%emt 0:00:54]} Rc5 {[%emt 0:00:36]} 44. Kc3 {[%emt 0:06:43]} Rxd5 {[%emt 0:05:24]} 45. cxd5+ {[%emt 0:01:38]} Kd7 {[%emt 0:00:22]} 46. Kd4 {[%emt 0:00:00]} b5 {[%emt 0:03:44]} 47. axb5 {[%emt 0:00:00]} axb5 {[%emt 0:00:22]} 48. e5 {[%emt 0:00:00]} dxe5+ {[%emt 0:00:03]} 49. Bxe5 {[%emt 0:00:50]} Bb4 {[%emt 0:01:34]} 50. Ke4 {[%emt 0:00:00]} Be1 {[%emt 0:01:08]} 51. Kf5 {[%emt 0:00:38]} h4 {[%emt 0:00:39]} 52. Kg4 {[%emt 0:01:34]} Ke7 {[%emt 0:01:33]} 53. Kg5 {[%emt 0:00:00]} Kd7 {[%emt 0:00:25]} 54. Kf5 {[%emt 0:00:00]} Ke7 {[%emt 0:01:32]} 55. Bf4 {[%emt 0:00:00]} Kd7 {[%emt 0:02:48]} 56. Kg4 {[%emt 0:02:09]} Ke7 {[%emt 0:00:00]} 57. Bg5+ {[%emt 0:00:00]} Kd6 {[%emt 0:00:00]} 58. Bxh4 {[%emt 0:00:00]} Bc3 {[%emt 0:00:00]} 59. Kf5 {[%emt 0:00:00]} Kxd5 {[%emt 0:00:00]} 60. Bf6 {[%emt 0:01:14]} Bd2 {[%emt 0:00:41]} 61. h4 {[%emt 0:00:22]} Kc5 {[%emt 0:00:41]} 62. Be7+ {[%emt 0:00:00]} Kd4 {[%emt 0:01:02]} 63. h5 {[%emt 0:01:12]} b4 {[%emt 0:00:49]} 64. Bg5 {[%emt 0:01:29]} Bxg5 {[%emt 0:01:42]} 65. Kxg5 {[%emt 0:00:00]} Kc3 {[%emt 0:00:05]} 66. h6 {[%emt 0:00:00]} Kxb3 {[%emt 0:00:03]} 67. h7 {[%emt 0:00:00]} Kc2 {[%emt 0:00:10]} 68. h8=Q {[%emt 0:00:00]} b3 {[%emt 0:00:00]} 69. Qc8+ {[%emt 0:00:00]} Kd3 {[%emt 0:00:05]} 70. Qb7 {[%emt 0:00:00]} Kc2 {[%emt 0:00:04]} 71. Qc6+ {[%emt 0:00:08]} Kb2 {[%emt 0:00:04]} 72. Kf4 {[%emt 0:00:00]} Ka3 {[%emt 0:00:06]} 73. Qa6+ {[%emt 0:00:15]} Kb4 {[%emt 0:00:10]} 74. Qa1 {[%emt 0:00:00]} Kc4 {[%emt 0:00:04]} 75. Qb2 {[%emt 0:00:00]} Kb4 {[%emt 0:00:03]} 76. Ke3 {[%emt 0:00:00]} Kc4 {[%emt 0:00:03]} 77. Ke4 {[%emt 0:00:00]} Kc5 {[%emt 0:00:07]} 78. Qxb3 {[%emt 0:00:00]} Kc6 {[%emt 0:00:07]} 79. Qd5+ {[%emt 0:00:00]} Kc7 {[%emt 0:00:00]} 80. Qe6 {[%emt 0:00:00]} Kd8 {[%emt 0:00:05]} 81. Qf7 {[%emt 0:01:18]} Kc8 {[%emt 0:00:19]} 82. Qe7 {[%emt 0:00:06]} Kb8 {[%emt 0:00:09]} 83. Qd7 {[%emt 0:00:11]} Ka8 {[%emt 0:00:08]} 84. Kd5 {[%emt 0:00:06]} Kb8 {[%emt 0:00:04]} 85. Kc6 {[%emt 0:00:08]} Ka8 {[%emt 0:00:08]} 86. Qb7# {[%emt 0:00:06]} 1-0

[Event "2nd Asian Nations Team Cup U14 2019"]
[Site "Shenzhen"]
[Date "2019.12.21"]
[Round "3.13"]
[White "Yeoh, Yuan Hui"]
[Black "Li, Shanglin"]
[Result "0-1"]
[ECO "D01"]
[WhiteElo "1738"]
[BlackElo "2020"]
[Annotator "NA RC"]
[PlyCount "108"]
[EventDate "2019.12.19"]
[EventType "team-tourn"]
[EventCountry "CHN"]
[SourceTitle "playchess.com"]
[Source "ChessBase"]
[SourceQuality "1"]
[TimeControl "5400+30"]

1. d4 {[%emt 0:00:00]} Nf6 {[%emt 0:00:00]} 2. Nc3 {[%emt 0:00:00]} d5 {[%emt 0:00:00]} 3. Bg5 {[%emt 0:00:43]} h6 {[%emt 0:00:00]} 4. Bxf6 {[%emt 0:00:41]} exf6 {[%emt 0:00:00]} 5. e3 {[%emt 0:00:29]} c6 {[%emt 0:00:00]} 6. Bd3 {[%emt 0:00:07]} Nd7 {[%emt 0:00:04]} 7. Qf3 {[%emt 0:01:39]} g6 {[%emt 0:00:09]} 8. Nge2 {[%emt 0:03:25]} f5 {[%emt 0:00:11]} 9. h4 {[%emt 0:10:45]} h5 {[%emt 0:00:01]} 10. Qg3 {[%emt 0:05:12]} Nf6 {[%emt 0:01:33]} 11. f3 {[%emt 0:11:14]} Bd6 {[%emt 0:00:28]} 12. Qg5 {[%emt 0:01:30]} Be7 {[%emt 0:01:48]} 13. Qf4 {[%emt 0:04:42]} Qd6 {[%emt 0:01:25]} 14. e4 {[%emt 0:12:09]} fxe4 {[%emt 0:01:13]} 15. Qxd6 {[%emt 0:02:49]} Bxd6 {[%emt 0:01:09]} 16. fxe4 {[%emt 0:00:08]} dxe4 {[%emt 0:00:21]} 17. Nxe4 {[%emt 0:00:22]} Nxe4 {[%emt 0:00:02]} 18. Bxe4 {[%emt 0:00:09]} Be6 {[%emt 0:00:19]} 19. Kf2 {[%emt 0:03:48]} O-O-O {[%emt 0:00:14]} 20. Rhd1 {[%emt 0:02:05]} Rhe8 {[%emt 0:00:52]} 21. Bf3 {[%emt 0:01:22]} f6 {[%emt 0:01:07]} 22. Rac1 {[%emt 0:06:47]} Bf7 {[%emt 0:01:29]} 23. c4 {[%emt 0:06:04]} g5 {[%emt 0:00:24]} 24. g3 {[%emt 0:06:24]} Re7 {[%emt 0:00:14]} 25. a3 {[%emt 0:08:03]} Rde8 {[%emt 0:00:22]} 26. Rd2 {[%emt 0:00:39]} Bg6 {[%emt 0:00:21]} 27. Rc3 {[%emt 0:01:52]} a5 {[%emt 0:00:14]} 28. c5 {[%emt 0:04:09]} Bc7 {[%emt 0:00:19]} 29. d5 {[%emt 0:01:42]} cxd5 {[%emt 0:00:39]} 30. Bxd5 {[%emt 0:01:33]} a4 {[%emt 0:00:24]} 31. Rf3 {[%emt 0:02:58]} Be5 {[%emt 0:00:33]} 32. Nc3 {[%emt 0:01:07]} g4 {[%emt 0:00:07]} 33. Re3 {[%emt 0:01:02]} Bd4 {[%emt 0:00:02]} 34. Rxd4 {[%emt 0:00:31]} Rxe3 {[%emt 0:00:01]} 35. Be4 {[%emt 0:00:35]} R3xe4 {[%emt 0:00:14]} 36. Nxe4 {[%emt 0:00:07]} Rxe4 {[%emt 0:00:46]} 37. Rd6 {[%emt 0:00:06]} Re5 {[%emt 0:00:18]} 38. c6 {[%emt 0:01:16]} b5 {[%emt 0:00:26]} 39. Kg2 {[%emt 0:00:35]} Be4+ {[%emt 0:00:07]} 40. Kf2 {[%emt 0:00:10]} Kc7 {[%emt 0:00:02]} 41. Rxf6 {[%emt 0:00:57]} Bxc6 {[%emt 0:00:08]} 42. Rf4 {[%emt 0:00:20]} Bf3 {[%emt 0:00:02]} 43. Rb4 {[%emt 0:00:12]} Kc6 {[%emt 0:00:07]} 44. b3 {[%emt 0:00:42]} axb3 {[%emt 0:00:10]} 45. Rxb3 {[%emt 0:00:02]} Re2+ {[%emt 0:00:09]} 46. Kf1 {[%emt 0:00:28]} Rg2 {[%emt 0:00:01]} 47. Rb4 {[%emt 0:00:12]} Rxg3 {[%emt 0:00:02]} 48. a4 {[%emt 0:00:14]} bxa4 {[%emt 0:00:02]} 49. Rxa4 {[%emt 0:00:12]} Rh3 {[%emt 0:00:01]} 50. Ra6+ {[%emt 0:00:29]} Kd5 {[%emt 0:00:01]} 51. Ra5+ {[%emt 0:00:48]} Ke4 {[%emt 0:00:00]} 52. Ra4+ {[%emt 0:00:29]} Ke3 {[%emt 0:00:01]} 53. Ra3+ {[%emt 0:00:34]} Kf4 {[%emt 0:00:01]} 54. Kf2 {[%emt 0:00:47]} g3+ {[%emt 0:00:10]} 0-1

[Event "2nd Asian Nations Team Cup U14 2019"]
[Site "Shenzhen"]
[Date "2019.12.21"]
[Round "3.14"]
[White "Xue, Haowen"]
[Black "Foo, Jiu Yarng Clarance"]
[Result "1-0"]
[ECO "B99"]
[WhiteElo "1909"]
[BlackElo "1654"]
[Annotator "NA RC"]
[PlyCount "113"]
[EventDate "2019.12.19"]
[EventType "team-tourn"]
[EventCountry "CHN"]
[SourceTitle "playchess.com"]
[Source "ChessBase"]
[SourceQuality "1"]
[TimeControl "5400+30"]

1. e4 {[%emt 0:00:00]} c5 {[%emt 0:03:53]} 2. Nf3 {[%emt 0:00:04]} d6 {[%emt 0:00:23]} 3. d4 {[%emt 0:00:08]} cxd4 {[%emt 0:00:30]} 4. Nxd4 {[%emt 0:00:05]} Nf6 {[%emt 0:00:20]} 5. Nc3 {[%emt 0:00:05]} a6 {[%emt 0:00:22]} 6. Bg5 {[%emt 0:00:06]} Nbd7 {[%emt 0:01:37]} 7. f4 {[%emt 0:00:54]} e6 {[%emt 0:02:40]} 8. Qf3 {[%emt 0:00:19]} Qc7 {[%emt 0:04:05]} 9. O-O-O {[%emt 0:00:08]} b5 {[%emt 0:08:22]} 10. Bd3 {[%emt 0:00:26]} Bb7 {[%emt 0:01:00]} 11. Rhe1 {[%emt 0:00:18]} Be7 {[%emt 0:01:13]} 12. Qg3 {[%emt 0:00:19]} b4 {[%emt 0:41:31]} 13. Nd5 {[%emt 0:00:13]} exd5 {[%emt 0:17:33]} 14. exd5 {[%emt 0:00:01]} Nc5 {[%emt 0:12:51]} 15. Nf5 {[%emt 0:00:29]} Nxd3+ {[%emt 0:00:34]} 16. Qxd3 {[%emt 0:00:56]} O-O-O {[%emt 0:00:32]} 17. Rxe7 {[%emt 0:00:28]} Rd7 {[%emt 0:00:14]} 18. Bxf6 {[%emt 0:00:40]} gxf6 {[%emt 0:00:12]} 19. Rxd7 {[%emt 0:00:13]} Qxd7 {[%emt 0:00:36]} 20. Re1 {[%emt 0:00:16]} Kb8 {[%emt 0:00:59]} 21. Re7 {[%emt 0:00:42]} Qd8 {[%emt 0:00:29]} 22. Qd4 {[%emt 0:01:36]} Re8 {[%emt 0:00:32]} 23. Qxf6 {[%emt 0:01:08]} Rxe7 {[%emt 0:00:26]} 24. Qxe7 {[%emt 0:00:08]} Qxe7 {[%emt 0:00:30]} 25. Nxe7 {[%emt 0:00:05]} Kc7 {[%emt 0:00:20]} 26. Nc6 {[%emt 0:00:18]} Bc8 {[%emt 0:00:45]} 27. Nxb4 {[%emt 0:00:17]} a5 {[%emt 0:00:15]} 28. Nc6 {[%emt 0:00:47]} a4 {[%emt 0:00:27]} 29. Kd2 {[%emt 0:00:22]} Bf5 {[%emt 0:00:20]} 30. c4 {[%emt 0:00:38]} Kb6 {[%emt 0:00:53]} 31. Kc3 {[%emt 0:01:20]} Bb1 {[%emt 0:00:30]} 32. Nb4 {[%emt 0:01:09]} Be4 {[%emt 0:00:30]} 33. g4 {[%emt 0:00:29]} Bf3 {[%emt 0:00:32]} 34. g5 {[%emt 0:00:09]} Bg4 {[%emt 0:00:12]} 35. h4 {[%emt 0:00:17]} Bf5 {[%emt 0:00:29]} 36. b3 {[%emt 0:00:21]} Bd7 {[%emt 0:00:49]} 37. Nc6 {[%emt 0:00:38]} axb3 {[%emt 0:00:22]} 38. axb3 {[%emt 0:00:04]} Be8 {[%emt 0:00:31]} 39. b4 {[%emt 0:00:19]} Bd7 {[%emt 0:00:26]} 40. Kd4 {[%emt 0:00:11]} Bh3 {[%emt 0:00:33]} 41. Nd8 {[%emt 0:00:17]} Bg4 {[%emt 0:00:37]} 42. Nxf7 {[%emt 0:00:06]} Kc7 {[%emt 0:00:14]} 43. Nh6 {[%emt 0:00:18]} Bh5 {[%emt 0:00:20]} 44. f5 {[%emt 0:00:08]} Kd7 {[%emt 0:00:05]} 45. Ng8 {[%emt 0:00:13]} Bf7 {[%emt 0:01:06]} 46. Nf6+ {[%emt 0:00:05]} Ke7 {[%emt 0:00:06]} 47. Nxh7 {[%emt 0:00:07]} Be8 {[%emt 0:00:21]} 48. g6 {[%emt 0:00:11]} Bd7 {[%emt 0:01:20]} 49. f6+ {[%emt 0:00:07]} Kd8 {[%emt 0:00:23]} 50. g7 {[%emt 0:00:09]} Kc7 {[%emt 0:00:13]} 51. g8=Q {[%emt 0:00:06]} Bf5 {[%emt 0:00:14]} 52. f7 {[%emt 0:00:11]} Kb6 {[%emt 0:00:38]} 53. Qb8+ {[%emt 0:00:09]} Ka6 {[%emt 0:00:10]} 54. Qxd6+ {[%emt 0:00:06]} Ka7 {[%emt 0:00:15]} 55. f8=Q {[%emt 0:00:11]} Bc8 {[%emt 0:00:12]} 56. Qc5+ {[%emt 0:00:08]} Ka6 {[%emt 0:00:24]} 57. Qfxc8# {[%emt 0:00:06]} 1-0

[Event "2nd Asian Nations Team Cup U14 2019"]
[Site "Shenzhen"]
[Date "2019.12.21"]
[Round "3.15"]
[White "Lee, Ryan"]
[Black "Lu, Miaoyi"]
[Result "1/2-1/2"]
[ECO "D10"]
[WhiteElo "1615"]
[BlackElo "1787"]
[Annotator "NA RC"]
[PlyCount "136"]
[EventDate "2019.12.19"]
[EventType "team-tourn"]
[EventCountry "CHN"]
[SourceTitle "playchess.com"]
[Source "ChessBase"]
[SourceQuality "1"]
[TimeControl "5400+30"]

1. d4 {[%emt 0:00:00]} d5 {[%emt 0:00:00]} 2. c4 {[%emt 0:00:00]} c6 {[%emt 0:00:00]} 3. Nc3 {[%emt 0:00:00]} Nf6 {[%emt 0:00:00]} 4. e3 {[%emt 0:00:10]} Bf5 {[%emt 0:00:50]} 5. cxd5 {[%emt 0:00:22]} cxd5 {[%emt 0:00:04]} 6. Qb3 {[%emt 0:00:07]} Nc6 {[%emt 0:00:32]} 7. Qxb7 {[%emt 0:04:01]} Bd7 {[%emt 0:00:16]} 8. Nb5 {[%emt 0:12:30]} Rc8 {[%emt 0:04:18]} 9. Nf3 {[%emt 0:17:54]} e6 {[%emt 0:14:16]} 10. Bd2 {[%emt 0:18:10]} Rb8 {[%emt 0:28:43]} 11. Qa6 {[%emt 0:01:29]} Rb6 {[%emt 0:08:18]} 12. Qa4 {[%emt 0:01:27]} a6 {[%emt 0:01:44]} 13. Nc3 {[%emt 0:02:19]} Rxb2 {[%emt 0:01:41]} 14. Qd1 {[%emt 0:03:41]} Nb4 {[%emt 0:04:58]} 15. Rc1 {[%emt 0:01:49]} Nxa2 {[%emt 0:03:00]} 16. Nxa2 {[%emt 0:02:13]} Rxa2 {[%emt 0:01:45]} 17. Ra1 {[%emt 0:05:25]} Rxa1 {[%emt 0:04:36]} 18. Qxa1 {[%emt 0:00:06]} Bb5 {[%emt 0:01:27]} 19. Bxb5+ {[%emt 0:00:25]} axb5 {[%emt 0:00:00]} 20. Qa6 {[%emt 0:02:28]} b4 {[%emt 0:12:45]} 21. Qc6+ {[%emt 0:02:24]} Nd7 {[%emt 0:02:02]} 22. Ne5 {[%emt 0:00:52]} Be7 {[%emt 0:00:54]} 23. O-O {[%emt 0:05:32]} f6 {[%emt 0:02:12]} 24. Nxd7 {[%emt 0:00:23]} Qxd7 {[%emt 0:00:05]} 25. Qa8+ {[%emt 0:00:15]} Qd8 {[%emt 0:00:29]} 26. Qa4+ {[%emt 0:00:26]} Qd7 {[%emt 0:03:27]} 27. Qa8+ {[%emt 0:00:27]} Qd8 {[%emt 0:00:08]} 28. Qa4+ {[%emt 0:00:04]} Kf7 {[%emt 0:00:41]} 29. Bxb4 {[%emt 0:00:18]} Bxb4 {[%emt 0:01:49]} 30. Qxb4 {[%emt 0:00:05]} Qb8 {[%emt 0:01:14]} 31. Rb1 {[%emt 0:00:37]} Qxb4 {[%emt 0:00:16]} 32. Rxb4 {[%emt 0:00:03]} Ra8 {[%emt 0:00:27]} 33. f4 {[%emt 0:00:27]} Ra7 {[%emt 0:02:16]} 34. Rb6 {[%emt 0:00:27]} f5 {[%emt 0:00:49]} 35. Kf2 {[%emt 0:00:17]} Kf6 {[%emt 0:00:17]} 36. Kf3 {[%emt 0:00:41]} h6 {[%emt 0:01:03]} 37. h4 {[%emt 0:00:36]} Ra1 {[%emt 0:00:07]} 38. Kf2 {[%emt 0:00:58]} Rh1 {[%emt 0:00:34]} 39. g3 {[%emt 0:00:20]} g6 {[%emt 0:00:40]} 40. Ra6 {[%emt 0:00:30]} Rh2+ {[%emt 0:00:40]} 41. Kf3 {[%emt 0:00:30]} h5 {[%emt 0:00:17]} 42. Ra7 {[%emt 0:00:44]} Rb2 {[%emt 0:00:15]} 43. Rc7 {[%emt 0:00:33]} Ra2 {[%emt 0:00:17]} 44. Rb7 {[%emt 0:00:04]} Ra1 {[%emt 0:00:41]} 45. Rc7 {[%emt 0:00:11]} Rf1+ {[%emt 0:00:11]} 46. Kg2 {[%emt 0:00:11]} Re1 {[%emt 0:00:41]} 47. Kf2 {[%emt 0:00:04]} Rb1 {[%emt 0:00:37]} 48. Kf3 {[%emt 0:00:07]} Rb6 {[%emt 0:00:19]} 49. Ra7 {[%emt 0:00:12]} Rb1 {[%emt 0:00:25]} 50. Rc7 {[%emt 0:00:14]} Ra1 {[%emt 0:00:21]} 51. Rb7 {[%emt 0:00:09]} Rg1 {[%emt 0:00:23]} 52. Kf2 {[%emt 0:00:08]} Rc1 {[%emt 0:00:44]} 53. Kf3 {[%emt 0:00:04]} Rc4 {[%emt 0:00:16]} 54. Ra7 {[%emt 0:00:11]} Rc8 {[%emt 0:00:46]} 55. Rb7 {[%emt 0:00:08]} Ra8 {[%emt 0:00:17]} 56. Rc7 {[%emt 0:00:08]} Rb8 {[%emt 0:00:34]} 57. Ra7 {[%emt 0:00:11]} Rb4 {[%emt 0:00:29]} 58. Rc7 {[%emt 0:00:10]} Rc4 {[%emt 0:01:10]} 59. Ra7 {[%emt 0:00:48]} Rc1 {[%emt 0:00:23]} 60. Rb7 {[%emt 0:00:08]} Rh1 {[%emt 0:00:27]} 61. Kg2 {[%emt 0:00:26]} Rd1 {[%emt 0:00:29]} 62. Kf3 {[%emt 0:00:10]} Rd2 {[%emt 0:00:17]} 63. Ra7 {[%emt 0:00:13]} Rh2 {[%emt 0:00:42]} 64. Rb7 {[%emt 0:00:09]} Rd2 {[%emt 0:00:29]} 65. Ra7 {[%emt 0:00:32]} Rh2 {[%emt 0:00:04]} 66. Rb7 {[%emt 0:00:05]} Rd2 {[%emt 0:00:12]} 67. Ra7 {[%emt 0:00:05]} Rh2 {[%emt 0:00:25]} 68. Rb7 {[%emt 0:00:03]} Rd2 {[%emt 0:00:08] Ke4 Ke5+} 1/2-1/2

[Event "2nd Asian Nations Team Cup U14 2019"]
[Site "Shenzhen"]
[Date "2019.12.21"]
[Round "3.16"]
[White "Wu, Yixing"]
[Black "Foo, Jing Er Claire"]
[Result "1-0"]
[ECO "E04"]
[WhiteElo "1767"]
[BlackElo "1546"]
[Annotator "NA RC"]
[PlyCount "47"]
[EventDate "2019.12.19"]
[EventType "team-tourn"]
[EventCountry "CHN"]
[SourceTitle "playchess.com"]
[Source "ChessBase"]
[SourceQuality "1"]
[TimeControl "5400+30"]

1. Nf3 {[%emt 0:00:00]} d5 {[%emt 0:03:41]} 2. g3 {[%emt 0:00:00]} c5 {[%emt 0:01:11]} 3. Bg2 {[%emt 0:00:00]} Nf6 {[%emt 0:00:58]} 4. O-O {[%emt 0:00:00]} Nc6 {[%emt 0:01:39]} 5. d4 {[%emt 0:00:00]} e6 {[%emt 0:02:57]} 6. c4 {[%emt 0:00:05]} dxc4 {[%emt 0:03:24]} 7. dxc5 {[%emt 0:00:05]} Bxc5 {[%emt 0:11:50]} 8. Qa4 {[%emt 0:00:11]} O-O {[%emt 0:02:38]} 9. Qxc4 {[%emt 0:00:10]} Bb6 {[%emt 0:05:34]} 10. Nc3 {[%emt 0:00:37]} Qe7 {[%emt 0:00:53]} 11. Qh4 {[%emt 0:04:25]} Bd8 {[%emt 0:05:09]} 12. Rd1 {[%emt 0:01:55]} Qe8 {[%emt 0:02:52]} 13. Bg5 {[%emt 0:23:30]} Be7 {[%emt 0:06:12]} 14. Nb5 {[%emt 0:03:52]} Bd8 {[%emt 0:08:52]} 15. Nd6 {[%emt 0:00:51]} Qe7 {[%emt 0:00:19]} 16. Ne4 {[%emt 0:00:08]} Kh8 {[%emt 0:01:54]} 17. Rxd8 {[%emt 0:02:05]} Qxd8 {[%emt 0:04:24]} 18. Nxf6 {[%emt 0:00:06]} gxf6 {[%emt 0:01:05]} 19. Bxf6+ {[%emt 0:00:20]} Qxf6 {[%emt 0:00:06]} 20. Qxf6+ {[%emt 0:00:04]} Kg8 {[%emt 0:00:08]} 21. Ng5 {[%emt 0:00:07]} Nd8 {[%emt 0:00:56]} 22. Be4 {[%emt 0:00:07]} Re8 {[%emt 0:00:32]} 23. Bxh7+ {[%emt 0:00:23]} Kf8 {[%emt 0:00:06]} 24. Rd1 {[%emt 0:00:14]} 1-0

[Event "2nd Asian Nations Team Cup U14 2019"]
[Site "Shenzhen"]
[Date "2019.12.21"]
[Round "3.19"]
[White "Temuujin, Kherlen"]
[Black "Ebrahimi Herab, Hamidreza"]
[Result "0-1"]
[ECO "A30"]
[WhiteElo "1711"]
[BlackElo "2053"]
[Annotator "NA RC"]
[PlyCount "96"]
[EventDate "2019.12.19"]
[EventType "team-tourn"]
[EventCountry "CHN"]
[SourceTitle "playchess.com"]
[Source "ChessBase"]
[SourceQuality "1"]
[TimeControl "5400+30"]

1. c4 {[%emt 0:00:00]} Nf6 {[%emt 0:00:20]} 2. Nf3 {[%emt 0:00:26]} g6 {[%emt 0:00:11]} 3. b3 {[%emt 0:01:42]} Bg7 {[%emt 0:00:22]} 4. Bb2 {[%emt 0:00:08]} O-O {[%emt 0:00:18]} 5. g3 {[%emt 0:00:20]} c5 {[%emt 0:00:44]} 6. Bg2 {[%emt 0:00:13]} Nc6 {[%emt 0:00:14]} 7. d4 {[%emt 0:01:53]} d5 {[%emt 0:04:01]} 8. dxc5 {[%emt 0:13:00]} dxc4 {[%emt 0:02:47]} 9. O-O {[%emt 0:01:32]} Bf5 {[%emt 0:05:26]} 10. Nbd2 {[%emt 0:08:29]} cxb3 {[%emt 0:04:06]} 11. axb3 {[%emt 0:00:45]} Qc7 {[%emt 0:01:33]} 12. Ra4 {[%emt 0:02:58]} Rfd8 {[%emt 0:03:40]} 13. Qa1 {[%emt 0:20:49]} Ne8 {[%emt 0:06:48]} 14. Bxg7 {[%emt 0:18:10]} Nxg7 {[%emt 0:00:44]} 15. e4 {[%emt 0:01:17]} Bg4 {[%emt 0:05:04]} 16. Qc3 {[%emt 0:01:16]} e5 {[%emt 0:03:40]} 17. b4 {[%emt 0:02:13]} Ne6 {[%emt 0:01:20]} 18. Nc4 {[%emt 0:08:10]} Ncd4 {[%emt 0:01:29]} 19. Kh1 {[%emt 0:00:20]} Bxf3 {[%emt 0:00:30]} 20. Bxf3 {[%emt 0:00:07]} Nxf3 {[%emt 0:00:05]} 21. Qxf3 {[%emt 0:00:11]} b5 {[%emt 0:00:05]} 22. cxb6 {[%emt 0:01:29]} Qxc4 {[%emt 0:00:18]} 23. Rfa1 {[%emt 0:00:15]} a6 {[%emt 0:00:56]} 24. h4 {[%emt 0:01:06]} Nd4 {[%emt 0:01:19]} 25. Qf6 {[%emt 0:00:40]} Qe6 {[%emt 0:00:58]} 26. Qxe6 {[%emt 0:01:55]} Nxe6 {[%emt 0:01:01]} 27. Rxa6 {[%emt 0:02:27]} Rxa6 {[%emt 0:00:25]} 28. Rxa6 {[%emt 0:00:05]} Rb8 {[%emt 0:00:06]} 29. Kg2 {[%emt 0:00:26]} Nd4 {[%emt 0:00:24]} 30. Ra5 {[%emt 0:00:24]} f6 {[%emt 0:00:17]} 31. Ra6 {[%emt 0:00:15]} Nc2 {[%emt 0:00:44]} 32. b7 {[%emt 0:00:49]} Rxb7 {[%emt 0:00:55]} 33. Rxf6 {[%emt 0:00:06]} Rxb4 {[%emt 0:00:07]} 34. f3 {[%emt 0:00:34]} Nd4 {[%emt 0:02:02]} 35. h5 {[%emt 0:00:31]} Kg7 {[%emt 0:00:42]} 36. Ra6 {[%emt 0:00:26]} Rb2+ {[%emt 0:00:08]} 37. Kf1 {[%emt 0:00:29]} Nxf3 {[%emt 0:00:07]} 38. hxg6 {[%emt 0:00:22]} hxg6 {[%emt 0:00:02]} 39. Ra3 {[%emt 0:00:17]} Nd2+ {[%emt 0:00:09]} 40. Kg1 {[%emt 0:00:10]} Nxe4 {[%emt 0:00:05]} 41. Re3 {[%emt 0:00:04]} Rb4 {[%emt 0:00:06]} 42. Kg2 {[%emt 0:00:24]} Kf6 {[%emt 0:00:04]} 43. Kg1 {[%emt 0:00:06]} Kf5 {[%emt 0:00:08]} 44. Kg2 {[%emt 0:00:16]} Kg4 {[%emt 0:00:09]} 45. Re2 {[%emt 0:00:13]} g5 {[%emt 0:00:15]} 46. Re3 {[%emt 0:00:18]} Rb2+ {[%emt 0:00:31]} 47. Kg1 {[%emt 0:00:04]} Nxg3 {[%emt 0:00:41]} 48. Rxe5 {[%emt 0:00:26]} Kh3 {[%emt 0:00:07]} 0-1

[Event "2nd Asian Nations Team Cup U14 2019"]
[Site "Shenzhen"]
[Date "2019.12.21"]
[Round "3.20"]
[White "Khorshidi, Mohammad Javad"]
[Black "Angar, Zoljargal"]
[Result "1-0"]
[ECO "D14"]
[WhiteElo "2094"]
[BlackElo "1696"]
[Annotator "NA RC"]
[PlyCount "59"]
[EventDate "2019.12.19"]
[EventType "team-tourn"]
[EventCountry "CHN"]
[SourceTitle "playchess.com"]
[Source "ChessBase"]
[SourceQuality "1"]
[TimeControl "5400+30"]

1. d4 {[%emt 0:00:00]} d5 {[%emt 0:00:00]} 2. c4 {[%emt 0:00:00]} c6 {[%emt 0:00:00]} 3. cxd5 {[%emt 0:00:00]} cxd5 {[%emt 0:00:27]} 4. Bf4 {[%emt 0:00:00]} Nc6 {[%emt 0:03:49]} 5. e3 {[%emt 0:00:09]} Nf6 {[%emt 0:02:27]} 6. Nc3 {[%emt 0:00:28]} Bf5 {[%emt 0:02:53]} 7. Nf3 {[%emt 0:00:46]} e6 {[%emt 0:02:24]} 8. Bb5 {[%emt 0:00:08]} Nd7 {[%emt 0:02:00]} 9. Qa4 {[%emt 0:02:28]} Qb6 {[%emt 0:04:10]} 10. Nh4 {[%emt 0:02:54]} Bg6 {[%emt 0:03:03]} 11. Nxg6 {[%emt 0:00:40]} hxg6 {[%emt 0:00:14]} 12. e4 {[%emt 0:01:31]} Bb4 {[%emt 0:12:52]} 13. exd5 {[%emt 0:03:16]} Bxc3+ {[%emt 0:00:54]} 14. bxc3 {[%emt 0:00:12]} exd5 {[%emt 0:00:29]} 15. O-O {[%emt 0:02:06]} O-O {[%emt 0:01:20]} 16. Rab1 {[%emt 0:01:53]} Nf6 {[%emt 0:04:39]} 17. Bd3 {[%emt 0:23:34]} Qa5 {[%emt 0:07:51]} 18. Qb3 {[%emt 0:08:32]} Rac8 {[%emt 0:07:01]} 19. Rfc1 {[%emt 0:07:05]} b6 {[%emt 0:07:33]} 20. Bd6 {[%emt 0:01:53]} b5 {[%emt 0:16:44]} 21. Bxf8 {[%emt 0:00:06]} Rxf8 {[%emt 0:00:11]} 22. Qxb5 {[%emt 0:00:29]} Qc7 {[%emt 0:00:21]} 23. g3 {[%emt 0:01:43]} Ne7 {[%emt 0:04:11]} 24. Qb7 {[%emt 0:01:02]} Qd6 {[%emt 0:00:48]} 25. Qxa7 {[%emt 0:01:35]} Nf5 {[%emt 0:00:25]} 26. Rb6 {[%emt 0:01:56]} Qd8 {[%emt 0:00:47]} 27. Bxf5 {[%emt 0:03:57]} gxf5 {[%emt 0:00:22]} 28. Rcb1 {[%emt 0:00:39]} Kh7 {[%emt 0:01:23]} 29. Rb8 {[%emt 0:00:28]} Qd6 {[%emt 0:00:18]} 30. R1b6 {[%emt 0:00:35]} 1-0